[Event "Titled Tuesday Blitz January 03 Early 2023"]
[White "Rostomyan, Mikayel"]
[Black "Gressmann, Moritz"]
[WhiteFideId "13313754"]
[BlackFideId "24695084"]
[WhiteElo "2222"]
[BlackElo "2129"]
[Result "1-0"]
[Round "01"]
[TimeControl "180+2"]
[Date "2023.01.03"]
[WhiteClock "0:01:39"]
[BlackClock "0:01:12"]

1. d4 {[%clk 0:03:00]}  d5 {[%clk 0:02:59]} 2. Nf3 {[%clk 0:03:00]}  Nf6 {[%clk 0:03:00]} 3. c4 {[%clk 0:03:00]}  c6 {[%clk 0:03:00]} 4. e3 {[%clk 0:02:59]}  e6 {[%clk 0:03:00]} 5. Nc3 {[%clk 0:02:59]}  Be7 {[%clk 0:03:01]} 6. b3 {[%clk 0:03:00]}  O-O {[%clk 0:03:01]} 7. Bb2 {[%clk 0:03:00]}  b6 {[%clk 0:03:02]} 8. Bd3 {[%clk 0:03:01]}  Ba6 {[%clk 0:03:02]} 9. O-O {[%clk 0:03:01]}  dxc4 {[%clk 0:03:02]} 10. bxc4 {[%clk 0:03:02]}  Nbd7 {[%clk 0:03:02]} 11. Qc2 {[%clk 0:02:58]}  h6 {[%clk 0:02:49]} 12. e4 {[%clk 0:02:56]}  e5 {[%clk 0:02:29]} 13. Nxe5 {[%clk 0:02:46]}  Nxe5 {[%clk 0:02:28]} 14. dxe5 {[%clk 0:02:47]}  Nd7 {[%clk 0:02:19]} 15. Ne2 {[%clk 0:02:45]}  Qc7 {[%clk 0:02:14]} 16. f4 {[%clk 0:02:31]}  Rad8 {[%clk 0:02:12]} 17. Ng3 {[%clk 0:02:26]}  Nc5 {[%clk 0:01:55]} 18. Be2 {[%clk 0:02:25]}  Nb7 {[%clk 0:01:34]} 19. Nf5 {[%clk 0:02:16]}  Bc5+ {[%clk 0:01:33]} 20. Kh1 {[%clk 0:02:15]}  Rfe8 {[%clk 0:01:29]} 21. Qc3 {[%clk 0:02:03]}  Kh7 {[%clk 0:01:18]} 22. Nxg7 {[%clk 0:01:55]}  Kxg7 {[%clk 0:01:17]} 23. e6+ {[%clk 0:01:49]}  Kf8 {[%clk 0:01:16]} 24. Qg7+ {[%clk 0:01:46]}  Ke7 {[%clk 0:01:12]} 25. Qxf7+ {[%clk 0:01:39]} 1-0


[Site "https://www.chess.com"]

[Event "Titled Tuesday Blitz January 03 Early 2023"]
[White "McCoy, Owen"]
[Black "Zaichenko, Daria"]
[WhiteFideId "30924502"]
[BlackFideId "4197453"]
[WhiteElo "2085"]
[BlackElo "2104"]
[Result "1-0"]
[Round "01"]
[TimeControl "180+2"]
[Date "2023.01.03"]
[WhiteClock "0:00:15"]
[BlackClock "0:00:04"]

1. d4 {[%clk 0:02:59]}  d5 {[%clk 0:02:59]} 2. Nf3 {[%clk 0:02:59]}  Bf5 {[%clk 0:02:58]} 3. c4 {[%clk 0:02:56]}  e6 {[%clk 0:02:58]} 4. Nc3 {[%clk 0:02:56]}  Nf6 {[%clk 0:02:56]} 5. Bg5 {[%clk 0:02:52]}  Be7 {[%clk 0:02:55]} 6. Bxf6 {[%clk 0:02:43]}  Bxf6 {[%clk 0:02:43]} 7. cxd5 {[%clk 0:02:35]}  exd5 {[%clk 0:02:41]} 8. Qb3 {[%clk 0:02:33]}  c6 {[%clk 0:02:18]} 9. Qxb7 {[%clk 0:02:24]}  O-O {[%clk 0:02:18]} 10. Qxa8 {[%clk 0:02:21]}  Qc7 {[%clk 0:02:08]} 11. Rc1 {[%clk 0:02:02]}  Na6 {[%clk 0:02:05]} 12. Qxf8+ {[%clk 0:01:47]}  Kxf8 {[%clk 0:02:05]} 13. e3 {[%clk 0:01:48]}  Nb4 {[%clk 0:02:02]} 14. a3 {[%clk 0:01:43]}  Nd3+ {[%clk 0:01:56]} 15. Bxd3 {[%clk 0:01:41]}  Bxd3 {[%clk 0:01:56]} 16. Nxd5 {[%clk 0:01:38]}  Qa5+ {[%clk 0:01:53]} 17. Nb4 {[%clk 0:01:30]}  Be7 {[%clk 0:01:47]} 18. Kd2 {[%clk 0:01:12]}  Be4 {[%clk 0:01:28]} 19. Kc3 {[%clk 0:00:50]}  c5 {[%clk 0:01:21]} 20. dxc5 {[%clk 0:00:49]}  Bf6+ {[%clk 0:01:12]} 21. Kb3 {[%clk 0:00:43]}  Qb5 {[%clk 0:01:11]} 22. c6 {[%clk 0:00:24]}  Bd5+ {[%clk 0:00:39]} 23. Kc2 {[%clk 0:00:24]}  Qe2+ {[%clk 0:00:25]} 24. Nd2 {[%clk 0:00:22]}  Be4+ {[%clk 0:00:25]} 25. Kb3 {[%clk 0:00:19]}  Qxd2 {[%clk 0:00:21]} 26. c7 {[%clk 0:00:19]}  Qxb2+ {[%clk 0:00:20]} 27. Ka4 {[%clk 0:00:19]}  Bb7 {[%clk 0:00:16]} 28. c8=Q+ {[%clk 0:00:19]}  Bxc8 {[%clk 0:00:16]} 29. Rxc8+ {[%clk 0:00:20]}  Ke7 {[%clk 0:00:16]} 30. Rhc1 {[%clk 0:00:20]}  Be5 {[%clk 0:00:14]} 31. R1c2 {[%clk 0:00:18]}  Qb1 {[%clk 0:00:12]} 32. f4 {[%clk 0:00:18]}  Bd6 {[%clk 0:00:11]} 33. Nc6+ {[%clk 0:00:19]}  Kf6 {[%clk 0:00:09]} 34. Nd4 {[%clk 0:00:19]}  Qb6 {[%clk 0:00:07]} 35. R8c6 {[%clk 0:00:18]}  Qb8 {[%clk 0:00:07]} 36. g4 {[%clk 0:00:16]}  Ke7 {[%clk 0:00:05]} 37. Rc7+ {[%clk 0:00:13]}  Bxc7 {[%clk 0:00:04]} 38. Nc6+ {[%clk 0:00:13]}  Kd7 {[%clk 0:00:04]} 39. Nxb8+ {[%clk 0:00:14]}  Bxb8 {[%clk 0:00:04]} 40. Kb5 {[%clk 0:00:15]}  Bd6 {[%clk 0:00:04]} 41. a4 {[%clk 0:00:15]} 1-0


[Site "https://www.chess.com"]

[Event "Titled Tuesday Blitz January 03 Early 2023"]
[White "Ismagilov, Damir"]
[Black "Vifleemskaia, Svetlana"]
[WhiteFideId "34199982"]
[BlackFideId "4129490"]
[WhiteElo "2156"]
[BlackElo "1971"]
[Result "1-0"]
[Round "01"]
[TimeControl "180+2"]
[Date "2023.01.03"]
[WhiteClock "0:00:04"]
[BlackClock "0:00:02"]

1. e4 {[%clk 0:02:59]}  e5 {[%clk 0:02:57]} 2. Nf3 {[%clk 0:02:59]}  Nc6 {[%clk 0:02:56]} 3. Bb5 {[%clk 0:02:59]}  a6 {[%clk 0:02:55]} 4. Ba4 {[%clk 0:02:58]}  Nf6 {[%clk 0:02:55]} 5. O-O {[%clk 0:02:57]}  Be7 {[%clk 0:02:56]} 6. Re1 {[%clk 0:02:56]}  b5 {[%clk 0:02:56]} 7. Bb3 {[%clk 0:02:56]}  d6 {[%clk 0:02:56]} 8. c3 {[%clk 0:02:54]}  O-O {[%clk 0:02:55]} 9. h3 {[%clk 0:02:54]}  Nd7 {[%clk 0:02:55]} 10. d4 {[%clk 0:02:52]}  Bf6 {[%clk 0:02:54]} 11. a4 {[%clk 0:02:41]}  Bb7 {[%clk 0:02:52]} 12. Qd3 {[%clk 0:02:21]}  b4 {[%clk 0:02:48]} 13. Nbd2 {[%clk 0:02:15]}  a5 {[%clk 0:02:39]} 14. Nf1 {[%clk 0:02:05]}  Ba6 {[%clk 0:02:38]} 15. Bc4 {[%clk 0:01:50]}  Qc8 {[%clk 0:02:26]} 16. Ng3 {[%clk 0:01:44]}  Ne7 {[%clk 0:02:25]} 17. Nh5 {[%clk 0:01:35]}  Nc6 {[%clk 0:02:09]} 18. Nxf6+ {[%clk 0:01:25]}  Nxf6 {[%clk 0:02:05]} 19. Bg5 {[%clk 0:01:25]}  Nd7 {[%clk 0:01:55]} 20. Rac1 {[%clk 0:01:15]}  h6 {[%clk 0:01:37]} 21. Be3 {[%clk 0:01:05]}  Nf6 {[%clk 0:01:23]} 22. Bxa6 {[%clk 0:00:55]}  Qxa6 {[%clk 0:00:50]} 23. Qxa6 {[%clk 0:00:54]}  Rxa6 {[%clk 0:00:50]} 24. d5 {[%clk 0:00:47]}  Nb8 {[%clk 0:00:29]} 25. Nd2 {[%clk 0:00:42]}  c5 {[%clk 0:00:20]} 26. cxb4 {[%clk 0:00:36]}  axb4 {[%clk 0:00:19]} 27. b3 {[%clk 0:00:36]}  Nbd7 {[%clk 0:00:16]} 28. f3 {[%clk 0:00:34]}  Nb6 {[%clk 0:00:16]} 29. Bf2 {[%clk 0:00:28]}  Ra5 {[%clk 0:00:15]} 30. g3 {[%clk 0:00:25]}  Nh5 {[%clk 0:00:13]} 31. Kg2 {[%clk 0:00:25]}  g6 {[%clk 0:00:11]} 32. Be3 {[%clk 0:00:22]}  g5 {[%clk 0:00:11]} 33. Rf1 {[%clk 0:00:21]}  Ng7 {[%clk 0:00:08]} 34. f4 {[%clk 0:00:21]}  exf4 {[%clk 0:00:07]} 35. gxf4 {[%clk 0:00:22]}  gxf4 {[%clk 0:00:05]} 36. Bxf4 {[%clk 0:00:20]}  Rd8 {[%clk 0:00:05]} 37. Bxh6 {[%clk 0:00:19]}  Ne8 {[%clk 0:00:03]} 38. Kh2 {[%clk 0:00:19]}  Kh7 {[%clk 0:00:03]} 39. Bg5 {[%clk 0:00:19]}  Rd7 {[%clk 0:00:03]} 40. Rf2 {[%clk 0:00:17]}  Ng7 {[%clk 0:00:03]} 41. Rcf1 {[%clk 0:00:17]}  Raa7 {[%clk 0:00:03]} 42. Bf6 {[%clk 0:00:15]}  Nh5 {[%clk 0:00:02]} 43. Rf5 {[%clk 0:00:14]}  Nxf6 {[%clk 0:00:01]} 44. Rxf6 {[%clk 0:00:15]}  Kg7 {[%clk 0:00:02]} 45. R6f5 {[%clk 0:00:15]}  Rab7 {[%clk 0:00:01]} 46. Rg1+ {[%clk 0:00:14]}  Kf8 {[%clk 0:00:01]} 47. Rh5 {[%clk 0:00:11]}  Ke7 {[%clk 0:00:01]} 48. Rh8 {[%clk 0:00:10]}  Rd8 {[%clk 0:00:01]} 49. Rxd8 {[%clk 0:00:09]}  Kxd8 {[%clk 0:00:02]} 50. h4 {[%clk 0:00:08]}  Ke7 {[%clk 0:00:03]} 51. h5 {[%clk 0:00:09]}  Rb8 {[%clk 0:00:03]} 52. Kh3 {[%clk 0:00:09]}  Rh8 {[%clk 0:00:04]} 53. Kh4 {[%clk 0:00:09]}  Nd7 {[%clk 0:00:04]} 54. Nf3 {[%clk 0:00:09]}  Nf6 {[%clk 0:00:04]} 55. Rg5 {[%clk 0:00:05]}  Nxe4 {[%clk 0:00:04]} 56. Rf5 {[%clk 0:00:05]}  Nf6 {[%clk 0:00:04]} 57. Kg5 {[%clk 0:00:03]}  Ne4+ {[%clk 0:00:04]} 58. Kh4 {[%clk 0:00:04]}  Nf6 {[%clk 0:00:05]} 59. Nh2 {[%clk 0:00:04]}  Rh7 {[%clk 0:00:03]} 60. Ng4 {[%clk 0:00:04]}  Nxg4 {[%clk 0:00:03]} 61. Kxg4 {[%clk 0:00:05]}  f6 {[%clk 0:00:03]} 62. Kf4 {[%clk 0:00:05]}  Rg7 {[%clk 0:00:03]} 63. h6 {[%clk 0:00:05]}  Rh7 {[%clk 0:00:03]} 64. Rh5 {[%clk 0:00:05]}  Kf7 {[%clk 0:00:04]} 65. Kf5 {[%clk 0:00:06]}  Kg8 {[%clk 0:00:03]} 66. a5 {[%clk 0:00:06]}  c4 {[%clk 0:00:03]} 67. bxc4 {[%clk 0:00:06]}  b3 {[%clk 0:00:03]} 68. Rh2 {[%clk 0:00:06]}  Rb7 {[%clk 0:00:03]} 69. a6 {[%clk 0:00:05]}  Ra7 {[%clk 0:00:03]} 70. h7+ {[%clk 0:00:05]}  Kh8 {[%clk 0:00:03]} 71. Rb2 {[%clk 0:00:04]}  Rxa6 {[%clk 0:00:03]} 72. Rxb3 {[%clk 0:00:04]}  Kxh7 {[%clk 0:00:03]} 73. Kxf6 {[%clk 0:00:05]}  Ra4 {[%clk 0:00:02]} 74. Ke6 {[%clk 0:00:05]}  Rxc4 {[%clk 0:00:02]} 75. Rg3 {[%clk 0:00:04]} 1-0


[Site "https://www.chess.com"]

[Event "Titled Tuesday Blitz January 03 Early 2023"]
[White "Skliarov, Viktor"]
[Black "Slovineanu"]
[WhiteFideId "14106736"]
[WhiteElo "2383"]
[BlackElo "2294"]
[Result "1-0"]
[Round "01"]
[TimeControl "180+2"]
[Date "2023.01.03"]
[WhiteClock "0:01:32"]
[BlackClock "0:01:06"]

1. e4 {[%clk 0:02:54]}  e6 {[%clk 0:02:55]} 2. d4 {[%clk 0:02:54]}  d5 {[%clk 0:02:56]} 3. e5 {[%clk 0:02:55]}  c5 {[%clk 0:02:55]} 4. c3 {[%clk 0:02:55]}  b6 {[%clk 0:02:54]} 5. Bd3 {[%clk 0:02:51]}  Qd7 {[%clk 0:02:52]} 6. Ne2 {[%clk 0:02:50]}  Ba6 {[%clk 0:02:52]} 7. Bc2 {[%clk 0:02:51]}  Bxe2 {[%clk 0:02:51]} 8. Qxe2 {[%clk 0:02:50]}  Nc6 {[%clk 0:02:46]} 9. Be3 {[%clk 0:02:50]}  f6 {[%clk 0:02:42]} 10. f4 {[%clk 0:02:49]}  fxe5 {[%clk 0:02:28]} 11. fxe5 {[%clk 0:02:48]}  g6 {[%clk 0:02:18]} 12. O-O {[%clk 0:02:44]}  Bh6 {[%clk 0:02:12]} 13. dxc5 {[%clk 0:02:13]}  Bxe3+ {[%clk 0:02:05]} 14. Qxe3 {[%clk 0:02:13]}  bxc5 {[%clk 0:01:56]} 15. Qxc5 {[%clk 0:02:12]}  Nge7 {[%clk 0:01:46]} 16. Na3 {[%clk 0:02:01]}  Nxe5 {[%clk 0:01:28]} 17. Nb5 {[%clk 0:01:52]}  Nf7 {[%clk 0:01:08]} 18. Nc7+ {[%clk 0:01:46]}  Kf8 {[%clk 0:01:05]} 19. Nxa8 {[%clk 0:01:44]}  Kg7 {[%clk 0:01:06]} 20. Qc7 {[%clk 0:01:32]} 1-0


[Site "https://www.chess.com"]

[Event "Titled Tuesday Blitz January 03 Early 2023"]
[White "Gilmanov, Mansur"]
[Black "Prudnykova, Olga"]
[WhiteFideId "4166868"]
[BlackFideId "14121093"]
[WhiteElo "2356"]
[BlackElo "2268"]
[Result "1-0"]
[Round "01"]
[TimeControl "180+2"]
[Date "2023.01.03"]
[WhiteClock "0:00:46"]
[BlackClock "0:00:43"]

1. d4 {[%clk 0:03:00]}  Nf6 {[%clk 0:02:31]} 2. Bg5 {[%clk 0:03:00]}  c5 {[%clk 0:02:30]} 3. Bxf6 {[%clk 0:02:59]}  gxf6 {[%clk 0:02:30]} 4. d5 {[%clk 0:03:00]}  Qb6 {[%clk 0:02:29]} 5. Qc1 {[%clk 0:03:00]}  f5 {[%clk 0:02:23]} 6. c4 {[%clk 0:03:00]}  Bg7 {[%clk 0:02:23]} 7. Nc3 {[%clk 0:03:00]}  d6 {[%clk 0:02:22]} 8. e3 {[%clk 0:03:00]}  Nd7 {[%clk 0:02:21]} 9. Nge2 {[%clk 0:03:00]}  Ne5 {[%clk 0:02:17]} 10. Ng3 {[%clk 0:03:00]}  e6 {[%clk 0:02:17]} 11. Be2 {[%clk 0:02:55]}  Qb4 {[%clk 0:02:08]} 12. O-O {[%clk 0:02:33]}  Nxc4 {[%clk 0:01:58]} 13. Rb1 {[%clk 0:02:20]}  Ne5 {[%clk 0:01:42]} 14. Nb5 {[%clk 0:02:16]}  O-O {[%clk 0:01:28]} 15. Nxd6 {[%clk 0:02:06]}  Bd7 {[%clk 0:01:28]} 16. dxe6 {[%clk 0:01:59]}  fxe6 {[%clk 0:01:28]} 17. a3 {[%clk 0:01:51]}  Qa4 {[%clk 0:01:24]} 18. Rd1 {[%clk 0:01:43]}  b6 {[%clk 0:01:19]} 19. b3 {[%clk 0:01:35]}  Qh4 {[%clk 0:01:15]} 20. f4 {[%clk 0:01:21]}  Ng4 {[%clk 0:01:10]} 21. Bxg4 {[%clk 0:01:21]}  Qxg4 {[%clk 0:01:09]} 22. Ndxf5 {[%clk 0:01:15]}  exf5 {[%clk 0:00:59]} 23. Rxd7 {[%clk 0:01:15]}  Rfe8 {[%clk 0:00:54]} 24. Qd2 {[%clk 0:01:05]}  h5 {[%clk 0:00:52]} 25. Qd5+ {[%clk 0:00:55]}  Kh8 {[%clk 0:00:52]} 26. Nxf5 {[%clk 0:00:54]}  Rg8 {[%clk 0:00:46]} 27. Nxg7 {[%clk 0:00:51]}  Rxg7 {[%clk 0:00:46]} 28. Rxg7 {[%clk 0:00:46]}  Kxg7 {[%clk 0:00:43]} 29. Qxa8 {[%clk 0:00:46]} 1-0


[Site "https://www.chess.com"]

[Event "Titled Tuesday Blitz January 03 Early 2023"]
[White "Zia, Tahsin Tajwar"]
[Black "Khumalo, Keith"]
[WhiteFideId "10211888"]
[BlackFideId "14319470"]
[WhiteElo "2315"]
[BlackElo "2099"]
[Result "1/2-1/2"]
[Round "01"]
[TimeControl "180+2"]
[Date "2023.01.03"]
[WhiteClock "0:00:14"]
[BlackClock "0:01:05"]

1. d4 {[%clk 0:02:55]}  Nf6 {[%clk 0:02:57]} 2. c4 {[%clk 0:02:53]}  e6 {[%clk 0:02:56]} 3. Nc3 {[%clk 0:02:48]}  c5 {[%clk 0:02:51]} 4. d5 {[%clk 0:02:46]}  exd5 {[%clk 0:02:52]} 5. cxd5 {[%clk 0:02:43]}  d6 {[%clk 0:02:52]} 6. g3 {[%clk 0:02:38]}  a6 {[%clk 0:02:51]} 7. a4 {[%clk 0:02:38]}  g6 {[%clk 0:02:52]} 8. Bg2 {[%clk 0:02:38]}  Bg7 {[%clk 0:02:52]} 9. Nf3 {[%clk 0:02:39]}  O-O {[%clk 0:02:52]} 10. O-O {[%clk 0:02:39]}  Re8 {[%clk 0:02:53]} 11. Bf4 {[%clk 0:02:39]}  h6 {[%clk 0:02:48]} 12. Qc1 {[%clk 0:02:28]}  g5 {[%clk 0:02:47]} 13. Bd2 {[%clk 0:02:27]}  Bf5 {[%clk 0:02:38]} 14. h4 {[%clk 0:02:24]}  g4 {[%clk 0:02:38]} 15. Ne1 {[%clk 0:02:24]}  Kh7 {[%clk 0:02:36]} 16. Nc2 {[%clk 0:02:23]}  Nbd7 {[%clk 0:02:33]} 17. Ne3 {[%clk 0:02:22]}  Bg6 {[%clk 0:02:28]} 18. Nc4 {[%clk 0:01:54]}  Nb6 {[%clk 0:02:28]} 19. Nxb6 {[%clk 0:01:44]}  Qxb6 {[%clk 0:02:27]} 20. a5 {[%clk 0:01:45]}  Qc7 {[%clk 0:02:22]} 21. Re1 {[%clk 0:01:36]}  b5 {[%clk 0:02:03]} 22. axb6 {[%clk 0:01:32]}  Qxb6 {[%clk 0:02:03]} 23. e4 {[%clk 0:01:30]}  Rab8 {[%clk 0:02:02]} 24. Na4 {[%clk 0:01:23]}  Qb7 {[%clk 0:01:59]} 25. e5 {[%clk 0:01:21]}  Rxe5 {[%clk 0:01:49]} 26. Rxe5 {[%clk 0:01:21]}  dxe5 {[%clk 0:01:50]} 27. d6 {[%clk 0:01:12]}  Qd7 {[%clk 0:01:44]} 28. Qxc5 {[%clk 0:01:01]}  Ne4 {[%clk 0:01:42]} 29. Bxe4 {[%clk 0:00:57]}  Bxe4 {[%clk 0:01:43]} 30. Nb6 {[%clk 0:00:56]}  Qf5 {[%clk 0:01:43]} 31. Ra3 {[%clk 0:00:50]}  Bb7 {[%clk 0:01:42]} 32. Re3 {[%clk 0:00:37]}  Qb1+ {[%clk 0:01:31]} 33. Qc1 {[%clk 0:00:36]}  Qf5 {[%clk 0:01:26]} 34. d7 {[%clk 0:00:32]}  Qe6 {[%clk 0:01:21]} 35. Qc7 {[%clk 0:00:28]}  Qc6 {[%clk 0:01:22]} 36. Qxc6 {[%clk 0:00:22]}  Bxc6 {[%clk 0:01:23]} 37. Rc3 {[%clk 0:00:13]}  Bxd7 {[%clk 0:01:14]} 38. Nxd7 {[%clk 0:00:14]}  Rxb2 {[%clk 0:01:14]} 39. Be3 {[%clk 0:00:14]}  f5 {[%clk 0:01:11]} 40. Rc6 {[%clk 0:00:13]}  Rb4 {[%clk 0:01:02]} 41. Nf6+ {[%clk 0:00:12]}  Bxf6 {[%clk 0:00:59]} 42. Rxf6 {[%clk 0:00:13]}  f4 {[%clk 0:00:57]} 43. gxf4 {[%clk 0:00:14]}  exf4 {[%clk 0:00:58]} 44. Bxf4 {[%clk 0:00:12]}  Rb1+ {[%clk 0:00:59]} 45. Kg2 {[%clk 0:00:12]}  h5 {[%clk 0:01:00]} 46. Rf5 {[%clk 0:00:12]}  Rb4 {[%clk 0:00:57]} 47. Rxh5+ {[%clk 0:00:13]}  Kg6 {[%clk 0:00:58]} 48. Rg5+ {[%clk 0:00:13]}  Kf6 {[%clk 0:00:59]} 49. Rxg4 {[%clk 0:00:13]}  Kf5 {[%clk 0:00:57]} 50. Kg3 {[%clk 0:00:14]}  Rb3+ {[%clk 0:00:58]} 51. f3 {[%clk 0:00:14]}  Rb1 {[%clk 0:00:58]} 52. Rg5+ {[%clk 0:00:15]}  Kf6 {[%clk 0:00:59]} 53. Be5+ {[%clk 0:00:14]}  Ke6 {[%clk 0:00:59]} 54. f4 {[%clk 0:00:15]}  Kd5 {[%clk 0:00:58]} 55. h5 {[%clk 0:00:15]}  Ke4 {[%clk 0:00:59]} 56. h6 {[%clk 0:00:15]}  Rh1 {[%clk 0:01:00]} 57. Rg6 {[%clk 0:00:12]}  Rg1+ {[%clk 0:01:00]} 58. Kf2 {[%clk 0:00:06]}  Rxg6 {[%clk 0:01:01]} 59. h7 {[%clk 0:00:06]}  Rh6 {[%clk 0:00:59]} 60. h8=Q {[%clk 0:00:07]}  Rxh8 {[%clk 0:00:59]} 61. Bxh8 {[%clk 0:00:08]}  Kxf4 {[%clk 0:01:00]} 62. Ke2 {[%clk 0:00:09]}  Ke4 {[%clk 0:01:01]} 63. Kd2 {[%clk 0:00:10]}  Kd5 {[%clk 0:01:02]} 64. Kc2 {[%clk 0:00:10]}  Kc4 {[%clk 0:01:03]} 65. Kb2 {[%clk 0:00:11]}  Kb5 {[%clk 0:01:04]} 66. Ka2 {[%clk 0:00:12]}  Ka4 {[%clk 0:01:05]} 67. Bc3 {[%clk 0:00:12]}  a5 {[%clk 0:01:05]} 68. Be1 {[%clk 0:00:13]}  Kb5 {[%clk 0:01:05]} 69. Bxa5 {[%clk 0:00:14]} 1/2-1/2


[Site "https://www.chess.com"]

[Event "Titled Tuesday Blitz January 03 Early 2023"]
[White "Zaksaite, Salomeja"]
[Black "Carnicelli, Valerio"]
[WhiteFideId "12801496"]
[BlackFideId "856185"]
[WhiteElo "2283"]
[BlackElo "2370"]
[Result "1-0"]
[Round "01"]
[TimeControl "180+2"]
[Date "2023.01.03"]
[WhiteClock "0:00:38"]
[BlackClock "0:00:25"]

1. e4 {[%clk 0:03:00]}  c5 {[%clk 0:02:59]} 2. Nf3 {[%clk 0:03:00]}  d6 {[%clk 0:02:59]} 3. d4 {[%clk 0:03:01]}  cxd4 {[%clk 0:03:00]} 4. Nxd4 {[%clk 0:03:01]}  Nf6 {[%clk 0:02:59]} 5. Nc3 {[%clk 0:03:02]}  a6 {[%clk 0:03:00]} 6. Bc4 {[%clk 0:03:01]}  e6 {[%clk 0:02:59]} 7. Bb3 {[%clk 0:02:59]}  Be7 {[%clk 0:02:53]} 8. O-O {[%clk 0:02:56]}  O-O {[%clk 0:02:52]} 9. f4 {[%clk 0:02:55]}  b5 {[%clk 0:02:45]} 10. e5 {[%clk 0:02:52]}  Nfd7 {[%clk 0:02:34]} 11. exd6 {[%clk 0:02:46]}  Bxd6 {[%clk 0:02:18]} 12. Nxe6 {[%clk 0:02:35]}  Qb6+ {[%clk 0:02:17]} 13. Nd4 {[%clk 0:02:33]}  Bc5 {[%clk 0:02:16]} 14. Be3 {[%clk 0:02:32]}  Nc6 {[%clk 0:02:16]} 15. Nd5 {[%clk 0:02:32]}  Bxd4 {[%clk 0:02:00]} 16. Nxb6 {[%clk 0:02:29]}  Bxe3+ {[%clk 0:02:01]} 17. Kh1 {[%clk 0:02:29]}  Bxb6 {[%clk 0:01:56]} 18. Bd5 {[%clk 0:02:27]}  Bb7 {[%clk 0:01:56]} 19. Qf3 {[%clk 0:02:10]}  Nd4 {[%clk 0:01:50]} 20. Bxf7+ {[%clk 0:01:56]}  Rxf7 {[%clk 0:01:45]} 21. Qxb7 {[%clk 0:01:57]}  Raf8 {[%clk 0:01:42]} 22. c3 {[%clk 0:01:43]}  Nc2 {[%clk 0:01:38]} 23. Rad1 {[%clk 0:01:36]}  Nf6 {[%clk 0:01:14]} 24. Qxb6 {[%clk 0:01:33]}  Ng4 {[%clk 0:01:14]} 25. Rd8 {[%clk 0:01:27]}  Nce3 {[%clk 0:01:09]} 26. Rxf8+ {[%clk 0:01:25]}  Rxf8 {[%clk 0:01:10]} 27. Re1 {[%clk 0:01:14]}  Rxf4 {[%clk 0:00:29]} 28. h3 {[%clk 0:00:49]}  Nf2+ {[%clk 0:00:25]} 29. Kg1 {[%clk 0:00:47]}  Nfd1 {[%clk 0:00:25]} 30. Rxe3 {[%clk 0:00:41]}  Nxe3 {[%clk 0:00:25]} 31. Qxe3 {[%clk 0:00:40]}  Rf6 {[%clk 0:00:26]} 32. Qe8+ {[%clk 0:00:39]}  Rf8 {[%clk 0:00:24]} 33. Qe6+ {[%clk 0:00:38]}  Kh8 {[%clk 0:00:25]} 34. Qxa6 {[%clk 0:00:38]} 1-0


[Site "https://www.chess.com"]

[Event "Titled Tuesday Blitz January 03 Early 2023"]
[White "Ingebretsen, Jens E"]
[Black "Dilmukhametov, Artur"]
[WhiteFideId "1522965"]
[BlackFideId "24179922"]
[WhiteElo "2342"]
[BlackElo "2276"]
[Result "1-0"]
[Round "01"]
[TimeControl "180+2"]
[Date "2023.01.03"]
[WhiteClock "0:00:14"]
[BlackClock "0:00:01"]

1. c4 {[%clk 0:02:59]}  c6 {[%clk 0:02:55]} 2. Nf3 {[%clk 0:02:58]}  d5 {[%clk 0:02:53]} 3. e3 {[%clk 0:02:59]}  Nf6 {[%clk 0:02:51]} 4. Nc3 {[%clk 0:03:00]}  a6 {[%clk 0:02:46]} 5. b3 {[%clk 0:03:00]}  Bg4 {[%clk 0:02:43]} 6. Bb2 {[%clk 0:03:00]}  e5 {[%clk 0:02:40]} 7. Be2 {[%clk 0:03:00]}  e4 {[%clk 0:02:38]} 8. Nd4 {[%clk 0:03:00]}  Bxe2 {[%clk 0:02:33]} 9. Qxe2 {[%clk 0:03:00]}  Nbd7 {[%clk 0:02:29]} 10. cxd5 {[%clk 0:02:54]}  cxd5 {[%clk 0:02:28]} 11. d3 {[%clk 0:02:51]}  Ne5 {[%clk 0:02:13]} 12. dxe4 {[%clk 0:02:47]}  dxe4 {[%clk 0:01:53]} 13. O-O {[%clk 0:02:47]}  Bb4 {[%clk 0:01:40]} 14. Rfd1 {[%clk 0:02:35]}  Qa5 {[%clk 0:01:30]} 15. Na4 {[%clk 0:01:30]}  O-O {[%clk 0:01:24]} 16. a3 {[%clk 0:01:19]}  Be7 {[%clk 0:01:23]} 17. Nf5 {[%clk 0:01:18]}  Nf3+ {[%clk 0:01:16]} 18. gxf3 {[%clk 0:01:10]}  Qxf5 {[%clk 0:01:15]} 19. fxe4 {[%clk 0:01:09]}  Nxe4 {[%clk 0:01:14]} 20. Nc3 {[%clk 0:01:02]}  Ng5 {[%clk 0:01:11]} 21. f4 {[%clk 0:00:57]}  Ne6 {[%clk 0:01:04]} 22. Qf3 {[%clk 0:00:54]}  Rad8 {[%clk 0:00:49]} 23. Nd5 {[%clk 0:00:54]}  Bc5 {[%clk 0:00:36]} 24. b4 {[%clk 0:00:51]}  Rxd5 {[%clk 0:00:36]} 25. Rxd5 {[%clk 0:00:48]}  Bxe3+ {[%clk 0:00:35]} 26. Kh1 {[%clk 0:00:48]}  Qxf4 {[%clk 0:00:33]} 27. Qxf4 {[%clk 0:00:43]}  Nxf4 {[%clk 0:00:24]} 28. Rd7 {[%clk 0:00:44]}  b5 {[%clk 0:00:18]} 29. Bd4 {[%clk 0:00:40]}  Bxd4 {[%clk 0:00:13]} 30. Rxd4 {[%clk 0:00:41]}  Ne6 {[%clk 0:00:12]} 31. Rd6 {[%clk 0:00:41]}  Ra8 {[%clk 0:00:12]} 32. Rc1 {[%clk 0:00:41]}  g5 {[%clk 0:00:10]} 33. Rcc6 {[%clk 0:00:41]}  a5 {[%clk 0:00:08]} 34. Ra6 {[%clk 0:00:41]}  Rc8 {[%clk 0:00:07]} 35. bxa5 {[%clk 0:00:35]}  Nf4 {[%clk 0:00:06]} 36. Rd1 {[%clk 0:00:34]}  Rc3 {[%clk 0:00:06]} 37. Ra8+ {[%clk 0:00:32]}  Kg7 {[%clk 0:00:06]} 38. a6 {[%clk 0:00:33]}  Rxa3 {[%clk 0:00:06]} 39. a7 {[%clk 0:00:33]}  b4 {[%clk 0:00:04]} 40. Rf1 {[%clk 0:00:26]}  b3 {[%clk 0:00:04]} 41. Rb8 {[%clk 0:00:20]}  Rxa7 {[%clk 0:00:03]} 42. Rxb3 {[%clk 0:00:21]}  Ra2 {[%clk 0:00:03]} 43. Rg3 {[%clk 0:00:21]}  Kh6 {[%clk 0:00:02]} 44. h4 {[%clk 0:00:19]}  f6 {[%clk 0:00:01]} 45. Rb3 {[%clk 0:00:18]}  Kg6 {[%clk 0:00:01]} 46. hxg5 {[%clk 0:00:18]}  fxg5 {[%clk 0:00:01]} 47. Rb6+ {[%clk 0:00:19]}  Kh5 {[%clk 0:00:01]} 48. Rb3 {[%clk 0:00:18]}  Kh4 {[%clk 0:00:01]} 49. Rg1 {[%clk 0:00:16]}  h5 {[%clk 0:00:01]} 50. Rb4 {[%clk 0:00:14]} 1-0


[Site "https://www.chess.com"]